[Event "*** Titled Tuesday Blitz"]
[Site "Chess.com"]
[Date "2020.05.26"]
[Round "8"]
[White "mishanick"]
[Black "Chepaschess"]
[Result "1/2-1/2"]
[WhiteElo "2961"]
[BlackElo "2819"]
[TimeControl "180+1"]
[EndTime "11:42:42 PDT"]
[Termination "Game drawn - insufficient material"]

1. d4 {[%clk 0:03:00.9]} 1... Nf6 {[%clk 0:02:59.8]} 2. c4 {[%clk 0:03:01.4]}
2... c5 {[%clk 0:03:00.2]} 3. d5 {[%clk 0:03:01.4]} 3... b5 {[%clk 0:03:00.4]}
4. cxb5 {[%clk 0:03:01.7]} 4... a6 {[%clk 0:03:00.8]} 5. bxa6 {[%clk 0:03:02.3]}
5... e6 {[%clk 0:03:01.3]} 6. Nc3 {[%clk 0:03:00.2]} 6... exd5 {[%clk
0:03:00.5]} 7. Nxd5 {[%clk 0:02:58.6]} 7... Be7 {[%clk 0:03:01.1]} 8. Nf3 {[%clk
0:02:50.5]} 8... O-O {[%clk 0:02:59]} 9. e3 {[%clk 0:02:49.6]} 9... Nxd5 {[%clk
0:02:48.1]} 10. Qxd5 {[%clk 0:02:48.4]} 10... Ra7 {[%clk 0:02:20.6]} 11. Bc4
{[%clk 0:02:28.5]} 11... Bxa6 {[%clk 0:02:17.3]} 12. Bxa6 {[%clk 0:02:26.5]}
12... Nxa6 {[%clk 0:02:18.2]} 13. O-O {[%clk 0:02:25.4]} 13... Nb4 {[%clk
0:02:09.5]} 14. Qb3 {[%clk 0:02:24.5]} 14... d5 {[%clk 0:02:09.6]} 15. a3 {[%clk
0:02:21.1]} 15... c4 {[%clk 0:02:07.9]} 16. Qd1 {[%clk 0:02:21.7]} 16... Nd3
{[%clk 0:02:06.5]} 17. Ne1 {[%clk 0:02:21.3]} 17... Nxc1 {[%clk 0:02:05]} 18.
Rxc1 {[%clk 0:02:19.4]} 18... Bf6 {[%clk 0:02:01.8]} 19. Rc2 {[%clk 0:02:19.1]}
19... Rb7 {[%clk 0:01:58.1]} 20. Qd2 {[%clk 0:02:18.5]} 20... Qd7 {[%clk
0:01:47.8]} 21. Nf3 {[%clk 0:02:18.8]} 21... Rfb8 {[%clk 0:01:47.7]} 22. Nd4
{[%clk 0:02:18.8]} 22... Rb6 {[%clk 0:01:39.3]} 23. Rd1 {[%clk 0:02:17.8]} 23...
Qb7 {[%clk 0:01:39.1]} 24. Rb1 {[%clk 0:02:06.2]} 24... h6 {[%clk 0:01:36.6]}
25. h3 {[%clk 0:02:05.8]} 25... h5 {[%clk 0:01:29.3]} 26. Qd1 {[%clk 0:02:05.3]}
26... h4 {[%clk 0:01:27.5]} 27. Qg4 {[%clk 0:02:02.2]} 27... Re8 {[%clk
0:01:19.3]} 28. Qd1 {[%clk 0:01:44.4]} 28... Re4 {[%clk 0:01:17]} 29. Ne2 {[%clk
0:00:47.3]} 29... Be5 {[%clk 0:01:06.8]} 30. a4 {[%clk 0:00:35.2]} 30... Rb3
{[%clk 0:01:03.4]} 31. Rd2 {[%clk 0:00:33.2]} 31... c3 {[%clk 0:01:00.5]} 32.
Rxd5 {[%clk 0:00:29.3]} 32... Rxb2 {[%clk 0:00:53.3]} 33. Nxc3 {[%clk
0:00:24.8]} 33... Rxb1 {[%clk 0:00:28.7]} 34. Qxb1 {[%clk 0:00:11.5]} 34...
Qxb1+ {[%clk 0:00:26.8]} 35. Nxb1 {[%clk 0:00:12.4]} 35... Bf6 {[%clk
0:00:21.3]} 36. a5 {[%clk 0:00:12.1]} 36... Ra4 {[%clk 0:00:19.9]} 37. Nd2
{[%clk 0:00:11.9]} 37... Bc3 {[%clk 0:00:18.7]} 38. Nf3 {[%clk 0:00:11.9]} 38...
Bxa5 {[%clk 0:00:16.8]} 39. Rc5 {[%clk 0:00:05]} 39... Bb6 {[%clk 0:00:15.1]}
40. Rc6 {[%clk 0:00:04.8]} 40... Rb4 {[%clk 0:00:14]} 41. Kf1 {[%clk 0:00:04.3]}
41... f6 {[%clk 0:00:13]} 42. Ke2 {[%clk 0:00:04.6]} 42... Rb2+ {[%clk
0:00:11.8]} 43. Kd3 {[%clk 0:00:04.5]} 43... Rb4 {[%clk 0:00:08.8]} 44. Rc4
{[%clk 0:00:04.2]} 44... Rxc4 {[%clk 0:00:09.1]} 45. Kxc4 {[%clk 0:00:05.1]}
45... g5 {[%clk 0:00:09.7]} 46. Kd5 {[%clk 0:00:05.7]} 46... Kf7 {[%clk
0:00:10.2]} 47. Nd4 {[%clk 0:00:06]} 47... Ba5 {[%clk 0:00:09.5]} 48. f3 {[%clk
0:00:05.7]} 48... Be1 {[%clk 0:00:09.3]} 49. e4 {[%clk 0:00:05.8]} 49... Bg3
{[%clk 0:00:09]} 50. Nf5 {[%clk 0:00:06.5]} 50... Bb8 {[%clk 0:00:08.8]} 51. Kc6
{[%clk 0:00:06.6]} 51... Ke6 {[%clk 0:00:08.2]} 52. Kc5 {[%clk 0:00:06.2]} 52...
Ke5 {[%clk 0:00:08.1]} 53. Kc6 {[%clk 0:00:04.7]} 53... Ke6 {[%clk 0:00:08.3]}
54. Kb7 {[%clk 0:00:04.9]} 54... Bf4 {[%clk 0:00:07.8]} 55. Kc8 {[%clk
0:00:05.1]} 55... Bd2 {[%clk 0:00:05.8]} 56. Kd8 {[%clk 0:00:05.2]} 56... Bb4
{[%clk 0:00:06.1]} 57. Ke8 {[%clk 0:00:05.1]} 57... Bc5 {[%clk 0:00:06.7]} 58.
Ng7+ {[%clk 0:00:04.6]} 58... Ke5 {[%clk 0:00:07.2]} 59. Kf7 {[%clk 0:00:05.1]}
59... Kf4 {[%clk 0:00:06.6]} 60. Nf5 {[%clk 0:00:05.3]} 60... Ke5 {[%clk
0:00:06]} 61. Kg6 {[%clk 0:00:04.6]} 61... Bb4 {[%clk 0:00:04.1]} 62. Kg7 {[%clk
0:00:04.6]} 62... Bc3 {[%clk 0:00:04.1]} 63. Kf7 {[%clk 0:00:04.7]} 63... Ba1
{[%clk 0:00:04.1]} 64. Ng7 {[%clk 0:00:03.1]} 64... Kf4 {[%clk 0:00:02.8]} 65.
Nh5+ {[%clk 0:00:03.6]} 65... Ke3 {[%clk 0:00:03.2]} 66. Nxf6 {[%clk 0:00:04]}
66... Kf2 {[%clk 0:00:03.7]} 67. e5 {[%clk 0:00:03.4]} 67... Bxe5 {[%clk
0:00:02.1]} 68. Ng4+ {[%clk 0:00:03.9]} 68... Kxg2 {[%clk 0:00:02.7]} 69. Nxe5
{[%clk 0:00:04.8]} 69... Kxh3 {[%clk 0:00:03.4]} 70. Kg6 {[%clk 0:00:05.7]}
70... Kg3 {[%clk 0:00:03.7]} 71. Kxg5 {[%clk 0:00:06]} 71... h3 {[%clk
0:00:04.2]} 72. Ng4 {[%clk 0:00:02.8]} 72... Kxf3 {[%clk 0:00:04.2]} 73. Kh4
{[%clk 0:00:01.9]} 73... h2 {[%clk 0:00:04.8]} 74. Nxh2+ {[%clk 0:00:02.2]}
1/2-1/2

[Event "*** Titled Tuesday Blitz"]
[Site "Chess.com"]
[Date "2020.05.26"]
[Round "8"]
[White "wnstop"]
[Black "Orest_Vovk"]
[Result "1-0"]
[WhiteElo "2575"]
[BlackElo "2434"]
[TimeControl "180+1"]
[EndTime "11:42:59 PDT"]
[Termination "wnstop won by resignation"]

1. e4 {[%clk 0:03:00.9]} 1... Nc6 {[%clk 0:02:58.9]} 2. d4 {[%clk 0:03:00.4]}
2... e5 {[%clk 0:02:57.8]} 3. dxe5 {[%clk 0:03:00.3]} 3... Nxe5 {[%clk
0:02:56.7]} 4. Nf3 {[%clk 0:03:00.9]} 4... Nxf3+ {[%clk 0:02:56.6]} 5. Qxf3
{[%clk 0:03:01.8]} 5... Qf6 {[%clk 0:02:55.8]} 6. Qg3 {[%clk 0:03:01.2]} 6...
Bc5 {[%clk 0:02:53.2]} 7. Nc3 {[%clk 0:02:58.1]} 7... Ne7 {[%clk 0:02:44.6]} 8.
Bf4 {[%clk 0:02:39.6]} 8... d6 {[%clk 0:02:33.7]} 9. O-O-O {[%clk 0:02:35.3]}
9... O-O {[%clk 0:02:20.2]} 10. e5 {[%clk 0:02:16.1]} 10... dxe5 {[%clk
0:02:08.2]} 11. Bxe5 {[%clk 0:01:48]} 11... Nf5 {[%clk 0:01:39.1]} 12. Bxf6
{[%clk 0:01:13.1]} 12... Nxg3 {[%clk 0:01:38.7]} 13. hxg3 {[%clk 0:01:11.8]}
13... gxf6 {[%clk 0:01:38.9]} 14. Ne4 {[%clk 0:01:11.6]} 14... Be7 {[%clk
0:01:33.9]} 15. Bd3 {[%clk 0:01:11.9]} 15... Kg7 {[%clk 0:01:17.3]} 16. f3
{[%clk 0:00:47.4]} 16... Be6 {[%clk 0:01:05.1]} 17. Rh5 {[%clk 0:00:44.5]} 17...
h6 {[%clk 0:00:58.9]} 18. Rdh1 {[%clk 0:00:42.5]} 18... Rh8 {[%clk 0:00:46.5]}
19. g4 {[%clk 0:00:42.8]} 19... Rad8 {[%clk 0:00:34.6]} 20. R5h3 {[%clk
0:00:32.6]} 20... b6 {[%clk 0:00:26.2]} 21. Ng3 {[%clk 0:00:31.3]} 21... c5
{[%clk 0:00:15.3]} 22. b3 {[%clk 0:00:29.2]} 22... a5 {[%clk 0:00:13.4]} 23. a4
{[%clk 0:00:28.5]} 23... Rd4 {[%clk 0:00:11.1]} 24. Be4 {[%clk 0:00:26.1]} 24...
c4 {[%clk 0:00:08.9]} 25. c3 {[%clk 0:00:17.4]} 25... Rd7 {[%clk 0:00:06.7]} 26.
bxc4 {[%clk 0:00:17.7]} 26... Rc7 {[%clk 0:00:06.6]} 27. Bd5 {[%clk 0:00:13.4]}
27... Bd6 {[%clk 0:00:06.5]} 28. Nh5+ {[%clk 0:00:10.6]} 28... Kg6 {[%clk
0:00:04.5]} 29. Be4+ {[%clk 0:00:10.1]} 29... f5 {[%clk 0:00:04.8]} 30. gxf5+
{[%clk 0:00:10.3]} 30... Bxf5 {[%clk 0:00:04.2]} 31. Bd5 {[%clk 0:00:05.6]}
31... Be6 {[%clk 0:00:02.9]} 32. Ng3 {[%clk 0:00:03.3]} 32... Bxd5 {[%clk
0:00:02.5]} 33. cxd5 {[%clk 0:00:04.2]} 33... Rxc3+ {[%clk 0:00:02.5]} 34. Kd2
{[%clk 0:00:04.7]} 34... Rc4 {[%clk 0:00:02.6]} 35. Ne4 {[%clk 0:00:05]} 35...
Rxa4 {[%clk 0:00:02.5]} 36. Nxd6 {[%clk 0:00:04.6]} 36... Rd4+ {[%clk
0:00:02.6]} 37. Ke3 {[%clk 0:00:04.9]} 37... Rxd5 {[%clk 0:00:03.5]} 38. Ne4
{[%clk 0:00:05.2]} 38... f5 {[%clk 0:00:03.8]} 39. Ng3 {[%clk 0:00:04.1]} 39...
Re8+ {[%clk 0:00:03.6]} 40. Kf2 {[%clk 0:00:04.4]} 40... Rd2+ {[%clk 0:00:03.9]}
41. Kg1 {[%clk 0:00:04.8]} 41... Rd1+ {[%clk 0:00:03.4]} 42. Kh2 {[%clk
0:00:04.8]} 42... Rxh1+ {[%clk 0:00:04.3]} 43. Nxh1 {[%clk 0:00:05.2]} 43... a4
{[%clk 0:00:05.2]} 44. f4 {[%clk 0:00:05.2]} 44... a3 {[%clk 0:00:05.3]} 45.
Rxa3 {[%clk 0:00:05]} 45... Re6 {[%clk 0:00:04.6]} 46. Rb3 {[%clk 0:00:05.2]}
46... Rc6 {[%clk 0:00:04.4]} 47. Ng3 {[%clk 0:00:05.5]} 47... Kf6 {[%clk
0:00:03.6]} 48. Nf1 {[%clk 0:00:05.7]} 48... Ke6 {[%clk 0:00:03.7]} 49. Nd2
{[%clk 0:00:05.9]} 49... Kd5 {[%clk 0:00:03.7]} 50. Nf3 {[%clk 0:00:06.2]} 50...
Ke4 {[%clk 0:00:03.6]} 51. Rb4+ {[%clk 0:00:05.9]} 51... Ke3 {[%clk 0:00:04.1]}
52. Nd4 {[%clk 0:00:05.8]} 52... Rf6 {[%clk 0:00:03.9]} 53. Kg3 {[%clk
0:00:04.4]} 53... h5 {[%clk 0:00:03.1]} 54. Kh4 {[%clk 0:00:04.2]} 54... Kf2
{[%clk 0:00:02.8]} 55. Rb2+ {[%clk 0:00:03.6]} 55... Ke3 {[%clk 0:00:02.9]} 56.
Ne2 {[%clk 0:00:03.7]} 56... Rg6 {[%clk 0:00:02.2]} 57. Ng3 {[%clk 0:00:03.8]}
57... Rg8 {[%clk 0:00:02.9]} 58. Nxf5+ {[%clk 0:00:03.9]} 58... Kxf4 {[%clk
0:00:03.2]} 59. Rf2+ {[%clk 0:00:04.5]} 59... Ke5 {[%clk 0:00:02.9]} 60. Ng3
{[%clk 0:00:05.1]} 60... Rh8 {[%clk 0:00:03.4]} 61. Nxh5 {[%clk 0:00:05.2]}
61... b5 {[%clk 0:00:04.3]} 62. g4 {[%clk 0:00:05.7]} 62... Kd4 {[%clk
0:00:04.1]} 63. Rf5 {[%clk 0:00:05.6]} 63... b4 {[%clk 0:00:05]} 64. Rf4+ {[%clk
0:00:05.7]} 64... Kc3 {[%clk 0:00:05.2]} 65. Rf3+ {[%clk 0:00:05.6]} 65... Kc2
{[%clk 0:00:05.3]} 66. Kg3 {[%clk 0:00:05.9]} 66... b3 {[%clk 0:00:05.5]} 67.
Rf2+ {[%clk 0:00:06.5]} 67... Kc1 {[%clk 0:00:05.5]} 68. Nf4 {[%clk 0:00:06.8]}
68... Rd8 {[%clk 0:00:03.9]} 69. Rf1+ {[%clk 0:00:06.1]} 69... Kc2 {[%clk
0:00:03.3]} 70. Rf2+ {[%clk 0:00:06.3]} 70... Kc1 {[%clk 0:00:03]} 71. Ne2+
{[%clk 0:00:06.8]} 71... Kc2 {[%clk 0:00:02.5]} 72. Nd4+ {[%clk 0:00:06.5]}
72... Kc3 {[%clk 0:00:02.7]} 73. Nxb3 {[%clk 0:00:05.2]} 73... Kxb3 {[%clk
0:00:03.3]} 74. g5 {[%clk 0:00:04.8]} 74... Kc4 {[%clk 0:00:03.8]} 75. Kg4
{[%clk 0:00:03.8]} 75... Rd4+ {[%clk 0:00:02.3]} 76. Rf4 {[%clk 0:00:03.9]}
76... Kd5 {[%clk 0:00:02.3]} 77. Rxd4+ {[%clk 0:00:03.9]} 77... Kxd4 {[%clk
0:00:03.2]} 78. Kf5 {[%clk 0:00:04.6]} 78... Kd5 {[%clk 0:00:03.3]} 79. Kf6
{[%clk 0:00:04.9]} 79... Kd6 {[%clk 0:00:04.2]} 80. g6 {[%clk 0:00:05.5]} 80...
Kd7 {[%clk 0:00:05.1]} 81. g7 {[%clk 0:00:06]} 1-0

[Event "*** Titled Tuesday Blitz"]
[Site "Chess.com"]
[Date "2020.05.26"]
[Round "8"]
[White "Gurvich_Vitaly"]
[Black "MusicCityMaster"]
[Result "1-0"]
[WhiteElo "2551"]
[BlackElo "2371"]
[TimeControl "180+1"]
[EndTime "11:43:17 PDT"]
[Termination "Gurvich_Vitaly won on time"]

1. e4 {[%clk 0:03:00.9]} 1... c5 {[%clk 0:02:59.5]} 2. Nf3 {[%clk 0:03:00.5]}
2... d6 {[%clk 0:02:57.1]} 3. d4 {[%clk 0:02:58.7]} 3... cxd4 {[%clk 0:02:53.9]}
4. Nxd4 {[%clk 0:02:59.6]} 4... Nf6 {[%clk 0:02:54.6]} 5. Nc3 {[%clk 0:02:56]}
5... a6 {[%clk 0:02:55.2]} 6. Nb3 {[%clk 0:02:56.1]} 6... e5 {[%clk 0:02:52.8]}
7. Bg5 {[%clk 0:02:55.4]} 7... Be6 {[%clk 0:02:51]} 8. Bxf6 {[%clk 0:02:49.6]}
8... Qxf6 {[%clk 0:02:47.4]} 9. Nd5 {[%clk 0:02:48.6]} 9... Qd8 {[%clk
0:02:47.4]} 10. Qd3 {[%clk 0:02:45.2]} 10... Nd7 {[%clk 0:02:42.5]} 11. O-O-O
{[%clk 0:02:44.5]} 11... Nb6 {[%clk 0:02:35.8]} 12. Ne3 {[%clk 0:02:25]} 12...
Rc8 {[%clk 0:02:31.1]} 13. Kb1 {[%clk 0:02:21.9]} 13... Be7 {[%clk 0:02:20.9]}
14. g3 {[%clk 0:02:21.6]} 14... O-O {[%clk 0:02:18.1]} 15. h4 {[%clk 0:02:20.8]}
15... Qc7 {[%clk 0:02:12.6]} 16. Bg2 {[%clk 0:02:12.7]} 16... Nc4 {[%clk
0:02:04.7]} 17. Rhe1 {[%clk 0:01:46.3]} 17... a5 {[%clk 0:01:55.9]} 18. a4
{[%clk 0:01:38.5]} 18... b5 {[%clk 0:01:53.7]} 19. axb5 {[%clk 0:01:35.7]} 19...
a4 {[%clk 0:01:54]} 20. Nd2 {[%clk 0:01:36.1]} 20... Nxe3 {[%clk 0:01:26.6]} 21.
Rxe3 {[%clk 0:01:37]} 21... Qc5 {[%clk 0:01:19.2]} 22. Bf1 {[%clk 0:01:32.4]}
22... f5 {[%clk 0:01:01.8]} 23. Rc1 {[%clk 0:01:25.1]} 23... f4 {[%clk
0:00:58.2]} 24. Re2 {[%clk 0:01:16.6]} 24... fxg3 {[%clk 0:00:51.1]} 25. fxg3
{[%clk 0:01:17.5]} 25... Rb8 {[%clk 0:00:43.6]} 26. c4 {[%clk 0:01:13.4]} 26...
Rfc8 {[%clk 0:00:36]} 27. Qa3 {[%clk 0:01:07.2]} 27... Rxb5 {[%clk 0:00:30.4]}
28. Qxc5 {[%clk 0:01:02.1]} 28... Rbxc5 {[%clk 0:00:30.7]} 29. Re3 {[%clk
0:01:03]} 29... Rb8 {[%clk 0:00:28]} 30. Ra3 {[%clk 0:01:01.4]} 30... Bd7 {[%clk
0:00:28.4]} 31. Kc2 {[%clk 0:00:59.1]} 31... Bd8 {[%clk 0:00:28.3]} 32. Nb1
{[%clk 0:00:57.8]} 32... Ba5 {[%clk 0:00:27.7]} 33. Nc3 {[%clk 0:00:57.3]} 33...
Bxc3 {[%clk 0:00:25.3]} 34. Kxc3 {[%clk 0:00:52.6]} 34... Rf8 {[%clk 0:00:25.2]}
35. Kb4 {[%clk 0:00:52]} 35... Rb8+ {[%clk 0:00:23.6]} 36. Kc3 {[%clk
0:00:51.9]} 36... Rf8 {[%clk 0:00:24.2]} 37. Rd1 {[%clk 0:00:50.7]} 37... Rf3+
{[%clk 0:00:22.6]} 38. Kb4 {[%clk 0:00:50.6]} 38... Rf2 {[%clk 0:00:19.8]} 39.
Rxd6 {[%clk 0:00:49.4]} 39... Rc7 {[%clk 0:00:17.3]} 40. c5 {[%clk 0:00:47.7]}
40... Rxb2+ {[%clk 0:00:16.6]} 41. Kc3 {[%clk 0:00:47.8]} 41... Rb1 {[%clk
0:00:15.8]} 42. Bc4+ {[%clk 0:00:47.6]} 42... Kf8 {[%clk 0:00:15]} 43. Ra2
{[%clk 0:00:22.8]} 43... Ke7 {[%clk 0:00:11.4]} 44. Rf2 {[%clk 0:00:21.7]} 44...
Be8 {[%clk 0:00:08.9]} 45. Ra6 {[%clk 0:00:19.2]} 45... Rc1+ {[%clk 0:00:07.9]}
46. Kd3 {[%clk 0:00:17.5]} 46... Rd7+ {[%clk 0:00:08.2]} 47. Bd5 {[%clk
0:00:17.7]} 47... Rxc5 {[%clk 0:00:05.2]} 48. Re6+ {[%clk 0:00:18]} 48... Kd8
{[%clk 0:00:05.1]} 49. Rf8 {[%clk 0:00:18.4]} 49... Re7 {[%clk 0:00:05.7]} 50.
Ra6 {[%clk 0:00:17.9]} 50... Rcc7 {[%clk 0:00:04.5]} 51. Ra8+ {[%clk 0:00:17.9]}
51... Kd7 {[%clk 0:00:04.8]} 52. Rxa4 {[%clk 0:00:17.6]} 52... Kd6 {[%clk
0:00:04.7]} 53. Ra6+ {[%clk 0:00:17.5]} 53... Bc6 {[%clk 0:00:05]} 54. Rd8+
{[%clk 0:00:16.6]} 54... Red7 {[%clk 0:00:05.5]} 55. Rxd7+ {[%clk 0:00:16.5]}
55... Kxd7 {[%clk 0:00:05.9]} 56. Bxc6+ {[%clk 0:00:15.2]} 56... Rxc6 {[%clk
0:00:06.8]} 57. Ra7+ {[%clk 0:00:16]} 57... Kd6 {[%clk 0:00:07.1]} 58. Rxg7
{[%clk 0:00:15.6]} 58... Ra6 {[%clk 0:00:06.1]} 59. Rxh7 {[%clk 0:00:15.7]}
59... Ra3+ {[%clk 0:00:06.7]} 60. Ke2 {[%clk 0:00:15.9]} 60... Rxg3 {[%clk
0:00:07.5]} 61. Kf2 {[%clk 0:00:14.6]} 61... Rg4 {[%clk 0:00:07.9]} 62. Kf3
{[%clk 0:00:15.1]} 62... Rf4+ {[%clk 0:00:08.4]} 63. Ke3 {[%clk 0:00:15.6]}
63... Rg4 {[%clk 0:00:08.5]} 64. h5 {[%clk 0:00:15.9]} 64... Ke6 {[%clk
0:00:08.3]} 65. Ra7 {[%clk 0:00:12.8]} 65... Kf6 {[%clk 0:00:08]} 66. Ra6+
{[%clk 0:00:12.2]} 66... Kg5 {[%clk 0:00:07.1]} 67. Re6 {[%clk 0:00:12.6]} 67...
Kxh5 {[%clk 0:00:06.4]} 68. Rxe5+ {[%clk 0:00:12.7]} 68... Kg6 {[%clk
0:00:07.1]} 69. Kd4 {[%clk 0:00:13.4]} 69... Kf6 {[%clk 0:00:07.2]} 70. Re8
{[%clk 0:00:13.4]} 70... Rg1 {[%clk 0:00:07.4]} 71. Rf8+ {[%clk 0:00:13.6]}
71... Ke7 {[%clk 0:00:07.1]} 72. Ra8 {[%clk 0:00:14.5]} 72... Rd1+ {[%clk
0:00:07.2]} 73. Ke5 {[%clk 0:00:13.9]} 73... Rb1 {[%clk 0:00:07.3]} 74. Ra7+
{[%clk 0:00:12.4]} 74... Ke8 {[%clk 0:00:07.7]} 75. Ra6 {[%clk 0:00:07.4]} 75...
Rb7 {[%clk 0:00:06.6]} 76. Kf5 {[%clk 0:00:05.9]} 76... Rf7+ {[%clk 0:00:06.7]}
77. Rf6 {[%clk 0:00:05.7]} 77... Rb7 {[%clk 0:00:05.8]} 78. e5 {[%clk
0:00:05.7]} 78... Ke7 {[%clk 0:00:05.2]} 79. Rh6 {[%clk 0:00:05.2]} 79... Rb1
{[%clk 0:00:05.7]} 80. Rh7+ {[%clk 0:00:05.3]} 80... Kf8 {[%clk 0:00:05.2]} 81.
Kf6 {[%clk 0:00:05.1]} 81... Rf1+ {[%clk 0:00:03.4]} 82. Ke6 {[%clk 0:00:04.8]}
82... Ra1 {[%clk 0:00:02.9]} 83. Rh8+ {[%clk 0:00:04.1]} 83... Kg7 {[%clk
0:00:03]} 84. Rd8 {[%clk 0:00:04.6]} 84... Ra6+ {[%clk 0:00:03.7]} 85. Ke7
{[%clk 0:00:04.6]} 85... Ra7+ {[%clk 0:00:03.8]} 86. Rd7 {[%clk 0:00:04.2]}
86... Ra5 {[%clk 0:00:04.7]} 87. e6 {[%clk 0:00:04.3]} 87... Kg6 {[%clk
0:00:04.8]} 88. Rc7 {[%clk 0:00:03.7]} 88... Ra8 {[%clk 0:00:05.2]} 89. Rd7
{[%clk 0:00:02.6]} 89... Ra7 {[%clk 0:00:05.5]} 90. Rxa7 {[%clk 0:00:02.2]} 1-0